[Event "EYTCC U12 Open 2019"]
[Site "Pardubice"]
[Date "2019.07.14"]
[Round "4.13"]
[White "Strybuk, Artsiom I"]
[Black "Bakiev, Diyor"]
[Result "1-0"]
[ECO "A49"]
[WhiteElo "2193"]
[BlackElo "2121"]
[Annotator "NA"]
[PlyCount "120"]
[EventDate "2019.07.11"]
[EventType "swiss"]
[EventCountry "CZE"]
[SourceTitle "playchess.com"]
[Source "ChessBase"]
[SourceQuality "1"]
[WhiteTeam "Belarus"]
[BlackTeam "Germany"]
[WhiteTeamCountry "BLR"]
[BlackTeamCountry "GER"]
[TimeControl "40/5400+30:1800+30"]

1. d4 {[%emt 0:00:00]} Nf6 {[%emt 0:00:00]} 2. Nf3 {[%emt 0:00:27]} g6 {[%emt 0:00:32]} 3. g3 {[%emt 0:01:52]} Bg7 {[%emt 0:00:15]} 4. Bg2 {[%emt 0:00:08]} O-O {[%emt 0:00:26]} 5. O-O {[%emt 0:00:08]} d6 {[%emt 0:00:38]} 6. c4 {[%emt 0:02:15]} c6 {[%emt 0:00:52]} 7. Nc3 {[%emt 0:00:50]} Qb6 {[%emt 0:01:12]} 8. c5 {[%emt 0:08:05]} dxc5 {[%emt 0:02:45]} 9. Na4 {[%emt 0:00:11]} Qd8 {[%emt 0:00:55]} 10. Nxc5 {[%emt 0:00:18]} Nbd7 {[%emt 0:02:33]} 11. Nd3 {[%emt 0:02:28]} Nb6 {[%emt 0:02:44]} 12. Bf4 {[%emt 0:01:55]} Nh5 {[%emt 0:08:43]} 13. Bg5 {[%emt 0:05:46]} h6 {[%emt 0:04:43]} 14. Bd2 {[%emt 0:00:54]} Bf5 {[%emt 0:04:37]} 15. Nc5 {[%emt 0:11:09]} Bc8 {[%emt 0:11:50]} 16. Rc1 {[%emt 0:03:40]} Kh7 {[%emt 0:04:39]} 17. Ba5 {[%emt 0:07:43]} Qd6 {[%emt 0:08:10]} 18. e4 {[%emt 0:03:33]} Qb8 {[%emt 0:11:30]} 19. Re1 {[%emt 0:05:04]} Nf6 {[%emt 0:08:51]} 20. e5 {[%emt 0:05:00]} Nfd5 {[%emt 0:02:39]} 21. e6 {[%emt 0:01:26]} fxe6 22. Ne5 {[%emt 0:02:41]} Bxe5 {[%emt 0:06:15]} 23. dxe5 {[%emt 0:05:27]} Rf5 {[%emt 0:02:56]} 24. f4 {[%emt 0:07:13]} Rf7 {[%emt 0:04:29]} 25. Be4 {[%emt 0:01:40]} Rg7 {[%emt 0:01:55]} 26. Qg4 {[%emt 0:01:50]} Qc7 {[%emt 0:01:36]} 27. Nxe6 {[%emt 0:02:11]} Bxe6 {[%emt 0:00:07]} 28. Qxe6 {[%emt 0:00:06]} Qc8 {[%emt 0:00:41]} 29. Qxc8 {[%emt 0:01:24]} Rxc8 {[%emt 0:00:27]} 30. f5 {[%emt 0:01:26]} Kh8 {[%emt 0:03:48]} 31. fxg6 {[%emt 0:00:15]} Rgg8 {[%emt 0:00:32]} 32. h4 {[%emt 0:04:21]} e6 {[%emt 0:00:51]} 33. h5 {[%emt 0:00:51]} Kg7 {[%emt 0:00:21]} 34. Bd2 {[%emt 0:03:51]} Nd7 {[%emt 0:01:25]} 35. g4 {[%emt 0:00:34]} Rce8 {[%emt 0:01:32]} 36. g5 {[%emt 0:02:44]} hxg5 {[%emt 0:00:32]} 37. Bxg5 {[%emt 0:00:36]} Rh8 {[%emt 0:00:37]} 38. h6+ {[%emt 0:00:28]} Rxh6 {[%emt 0:00:23]} 39. Bxh6+ {[%emt 0:00:06]} Kxh6 {[%emt 0:00:05]} 40. Bb1 {[%emt 0:02:14]} Nf4 {[%emt 0:01:43]} 41. Rc2 {[%emt 0:32:08]} Nf8 {[%emt 0:05:41]} 42. Rh2+ {[%emt 0:00:00]} Kg7 {[%emt 0:00:05]} 43. Rf1 {[%emt 0:00:00]} N8xg6 {[%emt 0:01:58]} 44. Bxg6 {[%emt 0:00:00]} Nxg6 {[%emt 0:00:04]} 45. Rg2 {[%emt 0:00:00]} Kh7 {[%emt 0:03:36]} 46. Rf7+ {[%emt 0:00:00]} Kh6 {[%emt 0:00:06]} 47. Rf6 {[%emt 0:00:00]} Rg8 {[%emt 0:00:16]} 48. Rxe6 {[%emt 0:00:00]} Kh7 {[%emt 0:00:58]} 49. Kf2 {[%emt 0:00:00]} a5 {[%emt 0:03:55]} 50. Ke3 {[%emt 0:00:00]} b5 {[%emt 0:01:33]} 51. Rxc6 {[%emt 0:00:00]} Rg7 {[%emt 0:00:50]} 52. Rcxg6 {[%emt 0:00:00]} Rxg6 {[%emt 0:00:08]} 53. Rxg6 {[%emt 0:00:00]} Kxg6 {[%emt 0:00:05]} 54. Kd4 {[%emt 0:00:00]} Kf7 {[%emt 0:00:26]} 55. Kc5 {[%emt 0:00:00]} b4 {[%emt 0:00:26]} 56. Kb5 {[%emt 0:00:00]} Ke6 {[%emt 0:00:08]} 57. Kxa5 {[%emt 0:00:00]} Kxe5 {[%emt 0:00:37]} 58. Kxb4 {[%emt 0:00:00]} Kd6 {[%emt 0:00:14]} 59. a4 {[%emt 0:00:00]} Kc6 {[%emt 0:00:03]} 60. a5 {[%emt 0:00:00]} Kb7 {[%emt 0:00:02]} 1-0

[Event "EYTCC U12 Open 2019"]
[Site "Pardubice"]
[Date "2019.07.14"]
[Round "4.14"]
[White "Costa, Leonardo"]
[Black "Navumenka, Mikhei"]
[Result "1/2-1/2"]
[ECO "C02"]
[WhiteElo "2002"]
[BlackElo "2196"]
[Annotator "NA"]
[PlyCount "120"]
[EventDate "2019.07.11"]
[EventType "swiss"]
[EventCountry "CZE"]
[SourceTitle "playchess.com"]
[Source "ChessBase"]
[SourceQuality "1"]
[WhiteTeam "Germany"]
[BlackTeam "Belarus"]
[WhiteTeamCountry "GER"]
[BlackTeamCountry "BLR"]
[TimeControl "40/5400+30:1800+30"]

1. e4 {[%emt 0:00:00]} e6 {[%emt 0:00:00]} 2. d4 {[%emt 0:00:00]} d5 {[%emt 0:00:04]} 3. e5 {[%emt 0:00:00]} c5 {[%emt 0:00:18]} 4. c3 {[%emt 0:00:06]} Qb6 {[%emt 0:00:17]} 5. Nf3 {[%emt 0:02:48]} Bd7 {[%emt 0:01:14]} 6. a3 {[%emt 0:07:16]} a5 {[%emt 0:03:03]} 7. Bd3 {[%emt 0:04:26]} Bb5 {[%emt 0:05:31]} 8. O-O {[%emt 0:09:43]} Bxd3 {[%emt 0:01:06]} 9. Qxd3 {[%emt 0:00:09]} Qa6 10. Qc2 Nc6 {[%emt 0:04:57]} 11. Be3 {[%emt 0:14:31]} cxd4 {[%emt 0:01:09]} 12. cxd4 {[%emt 0:01:23]} Nge7 {[%emt 0:03:03]} 13. Nc3 {[%emt 0:02:34]} Nc8 {[%emt 0:01:39]} 14. Nd2 {[%emt 0:14:22]} Be7 {[%emt 0:08:40]} 15. Na4 {[%emt 0:04:33]} O-O {[%emt 0:01:14]} 16. Rfc1 {[%emt 0:02:28]} Nb6 {[%emt 0:09:08]} 17. Qb3 {[%emt 0:06:23]} Nxa4 {[%emt 0:01:15]} 18. Qxa4 {[%emt 0:00:05]} Rfc8 {[%emt 0:02:45]} 19. Rc2 {[%emt 0:04:48]} b5 {[%emt 0:15:11]} 20. Qb3 {[%emt 0:00:25]} a4 {[%emt 0:00:42]} 21. Qd3 {[%emt 0:02:18]} Na5 {[%emt 0:02:38]} 22. Rac1 {[%emt 0:03:42]} Nc4 {[%emt 0:01:34]} 23. Nb1 {[%emt 0:04:01]} Rcb8 {[%emt 0:04:58]} 24. Bd2 {[%emt 0:01:40]} Qa7 {[%emt 0:09:18]} 25. h3 {[%emt 0:02:33]} f6 {[%emt 0:03:33]} 26. exf6 {[%emt 0:00:35]} Bxf6 {[%emt 0:00:03]} 27. Bc3 {[%emt 0:00:13]} Rf8 {[%emt 0:01:02]} 28. Re1 {[%emt 0:00:40]} Rae8 {[%emt 0:02:14]} 29. Nd2 {[%emt 0:00:57]} Bg5 {[%emt 0:04:51]} 30. Nf3 {[%emt 0:00:33]} Bf4 {[%emt 0:01:00]} 31. Rce2 {[%emt 0:00:49]} Rf6 {[%emt 0:01:40]} 32. Qd1 {[%emt 0:03:55]} Qf7 {[%emt 0:01:38]} 33. Qc2 {[%emt 0:03:29]} h6 {[%emt 0:02:11]} 34. Bd2 {[%emt 0:01:54]} Bb8 {[%emt 0:01:16]} 35. Bc3 {[%emt 0:01:25]} Qh5 {[%emt 0:02:46]} 36. Qd3 {[%emt 0:01:02]} Ref8 {[%emt 0:02:33]} 37. Rxe6 {[%emt 0:01:36]} Rxf3 {[%emt 0:01:24]} 38. gxf3 {[%emt 0:00:56]} Qxh3 {[%emt 0:00:02]} 39. R6e5 {[%emt 0:00:34]} Bxe5 {[%emt 0:01:29]} 40. dxe5 {[%emt 0:00:07]} Qxf3 {[%emt 0:01:43]} 41. Qxf3 {[%emt 0:30:29]} Rxf3 {[%emt 0:30:00]} 42. Rd1 {[%emt 0:00:00]} Nb6 {[%emt 0:00:00]} 43. Bd4 {[%emt 0:00:00]} Nc4 {[%emt 0:00:00]} 44. Bc3 {[%emt 0:00:00]} Nb6 {[%emt 0:00:00]} 45. Bd4 {[%emt 0:00:00]} Nd7 {[%emt 0:00:00]} 46. e6 {[%emt 0:00:00]} Nf6 {[%emt 0:00:00]} 47. Bxf6 {[%emt 0:00:00]} Rxf6 {[%emt 0:00:00]} 48. Rxd5 {[%emt 0:00:00]} Rxe6 {[%emt 0:00:00]} 49. Rxb5 {[%emt 0:00:00]} Re2 {[%emt 0:00:00]} 50. Rb4 {[%emt 0:00:00]} Kh7 {[%emt 0:00:00]} 51. Rxa4 {[%emt 0:00:00]} Rxb2 {[%emt 0:00:00]} 52. Kg2 {[%emt 0:00:00]} h5 {[%emt 0:00:00]} 53. Ra5 {[%emt 0:00:00]} Kh6 {[%emt 0:00:00]} 54. Kg3 {[%emt 0:00:00]} g6 {[%emt 0:00:00]} 55. a4 {[%emt 0:00:00]} Rb3+ {[%emt 0:00:00]} 56. f3 {[%emt 0:00:00]} Ra3 {[%emt 0:00:00]} 57. Ra6 {[%emt 0:00:00]} Rc3 {[%emt 0:00:00]} 58. Rb6 {[%emt 0:00:00]} Rc4 {[%emt 0:00:00]} 59. Ra6 {[%emt 0:00:00]} Kg5 {[%emt 0:00:00]} 60. Ra5+ {[%emt 0:00:00]} Kh6 {[%emt 0:00:00]} 1/2-1/2

[Event "EYTCC U12 Open 2019"]
[Site "Pardubice"]
[Date "2019.07.14"]
[Round "4.15"]
[White "Bialiauski, Artsiom"]
[Black "Deuer, Marius"]
[Result "0-1"]
[ECO "A48"]
[WhiteElo "1784"]
[BlackElo "1881"]
[Annotator "NA"]
[PlyCount "144"]
[EventDate "2019.07.11"]
[EventType "swiss"]
[EventCountry "CZE"]
[SourceTitle "playchess.com"]
[Source "ChessBase"]
[SourceQuality "1"]
[WhiteTeam "Belarus"]
[BlackTeam "Germany"]
[WhiteTeamCountry "BLR"]
[BlackTeamCountry "GER"]
[TimeControl "40/5400+30:1800+30"]

1. d4 {[%emt 0:00:00]} Nf6 {[%emt 0:00:00]} 2. Nf3 {[%emt 0:00:14]} g6 {[%emt 0:00:00]} 3. c4 {[%emt 0:00:09]} Bg7 {[%emt 0:01:11]} 4. Nc3 {[%emt 0:02:23]} O-O {[%emt 0:02:54]} 5. Bg5 {[%emt 0:00:53]} d6 {[%emt 0:02:24]} 6. e3 {[%emt 0:01:48]} Nbd7 {[%emt 0:02:51]} 7. Qc2 {[%emt 0:01:59]} c6 {[%emt 0:03:44]} 8. Be2 {[%emt 0:01:31]} Qc7 {[%emt 0:03:04]} 9. O-O {[%emt 0:01:03]} e5 {[%emt 0:02:33]} 10. Rfd1 {[%emt 0:01:55]} h6 {[%emt 0:07:58]} 11. Bh4 {[%emt 0:00:06]} Nb6 {[%emt 0:03:38]} 12. Rac1 {[%emt 0:21:21]} Bf5 {[%emt 0:08:33]} 13. Qb3 {[%emt 0:02:06]} g5 {[%emt 0:04:29]} 14. Bg3 {[%emt 0:00:10]} Nh5 {[%emt 0:00:33]} 15. Qa3 {[%emt 0:05:52]} Nxg3 {[%emt 0:01:57]} 16. hxg3 {[%emt 0:00:07]} Rfe8 {[%emt 0:06:41]} 17. d5 {[%emt 0:07:28]} Bf8 {[%emt 0:04:27]} 18. e4 {[%emt 0:06:06]} Bc8 {[%emt 0:04:35]} 19. Nd2 {[%emt 0:00:21]} a5 {[%emt 0:04:03]} 20. b3 {[%emt 0:03:32]} Bd7 {[%emt 0:06:53]} 21. Qb2 {[%emt 0:02:44]} c5 {[%emt 0:04:30]} 22. a3 {[%emt 0:01:53]} Bg7 {[%emt 0:03:33]} 23. Rb1 {[%emt 0:03:02]} Reb8 {[%emt 0:05:10]} 24. Rdc1 {[%emt 0:01:11]} Nc8 {[%emt 0:01:09]} 25. b4 {[%emt 0:02:50]} b6 {[%emt 0:01:05]} 26. Bd3 {[%emt 0:03:32]} Ne7 {[%emt 0:02:28]} 27. Kf1 {[%emt 0:02:09]} Kf8 {[%emt 0:02:36]} 28. Ke2 {[%emt 0:00:27]} Bg4+ {[%emt 0:01:01]} 29. f3 {[%emt 0:00:08]} Bd7 {[%emt 0:00:06]} 30. g4 {[%emt 0:00:04]} Ng6 {[%emt 0:01:30]} 31. g3 {[%emt 0:00:06]} Ne7 {[%emt 0:00:31]} 32. Nf1 {[%emt 0:00:10]} Kg8 {[%emt 0:01:38]} 33. Ne3 {[%emt 0:00:11]} Kh8 {[%emt 0:01:02]} 34. Rh1 {[%emt 0:00:47]} Ng8 {[%emt 0:00:16]} 35. Ncd1 {[%emt 0:00:38]} axb4 {[%emt 0:00:52]} 36. axb4 {[%emt 0:00:10]} cxb4 {[%emt 0:00:33]} 37. Qxb4 {[%emt 0:00:16]} Qc5 {[%emt 0:00:19]} 38. Nc3 {[%emt 0:00:42]} Nf6 {[%emt 0:03:08]} 39. Rb2 {[%emt 0:01:57]} Ne8 {[%emt 0:02:07]} 40. Rhb1 {[%emt 0:00:13]} Qc8 {[%emt 0:02:00]} 41. Nf5 {[%emt 0:34:41]} Bxf5 {[%emt 0:04:04]} 42. gxf5 {[%emt 0:00:00]} Qd7 {[%emt 0:09:07]} 43. Bc2 {[%emt 0:00:00]} Nc7 {[%emt 0:02:59]} 44. Ba4 {[%emt 0:00:00]} Qe7 {[%emt 0:01:12]} 45. Bc6 {[%emt 0:00:00]} Ra7 {[%emt 0:00:31]} 46. Nb5 {[%emt 0:00:00]} Nxb5 {[%emt 0:00:59]} 47. Qxb5 {[%emt 0:00:00]} g4 {[%emt 0:04:17]} 48. fxg4 {[%emt 0:00:00]} Qg5 {[%emt 0:00:59]} 49. Kf3 {[%emt 0:00:00]} h5 {[%emt 0:01:20]} 50. gxh5 {[%emt 0:00:00]} Ra3+ {[%emt 0:00:48]} 51. Rb3 {[%emt 0:00:00]} Qxh5+ {[%emt 0:00:19]} 52. Kg2 {[%emt 0:00:00]} Qe2+ {[%emt 0:01:15]} 53. Kh3 {[%emt 0:00:00]} Ra2 {[%emt 0:01:25]} 54. R3b2 {[%emt 0:00:00]} Rxb2 {[%emt 0:01:13]} 55. Qxb2 {[%emt 0:00:00]} Qxe4 {[%emt 0:00:24]} 56. Rf1 {[%emt 0:00:00]} Bf6 {[%emt 0:03:13]} 57. Qc3 {[%emt 0:05:07]} Kg7 {[%emt 0:01:29]} 58. Qf3 {[%emt 0:00:53]} Rh8+ {[%emt 0:00:13]} 59. Kg2 {[%emt 0:00:05]} Qxc4 {[%emt 0:00:17]} 60. Re1 {[%emt 0:00:27]} Qc5 {[%emt 0:03:21]} 61. Qd3 {[%emt 0:06:33]} Rh2+ {[%emt 0:00:45]} 62. Kxh2 {[%emt 0:00:05]} Qf2+ {[%emt 0:00:04]} 63. Kh3 {[%emt 0:00:08]} Qxe1 {[%emt 0:00:05]} 64. Qa3 {[%emt 0:04:06]} Qh1+ {[%emt 0:01:55]} 65. Kg4 {[%emt 0:00:04]} Qe4+ {[%emt 0:00:04]} 66. Kh3 {[%emt 0:00:04]} Qxf5+ {[%emt 0:00:08]} 67. Kg2 {[%emt 0:00:09]} Qc2+ {[%emt 0:00:51]} 68. Kh3 {[%emt 0:00:11]} Qf5+ {[%emt 0:00:45]} 69. Kg2 {[%emt 0:00:06]} Qc2+ {[%emt 0:00:55]} 70. Kh3 {[%emt 0:00:05]} Qd1 {[%emt 0:00:25]} 71. Qxd6 {[%emt 0:01:07]} Qh1+ {[%emt 0:00:06]} 72. Kg4 {[%emt 0:00:06]} Kg6 {[%emt 0:00:04]} 0-1

[Event "EYTCC U12 Open 2019"]
[Site "Pardubice"]
[Date "2019.07.14"]
[Round "4.16"]
[White "Hagner, Bennet"]
[Black "Piatrenka, Ivan"]
[Result "1-0"]
[ECO "B07"]
[WhiteElo "1831"]
[BlackElo "1498"]
[Annotator "NA"]
[PlyCount "71"]
[EventDate "2019.07.11"]
[EventType "swiss"]
[EventCountry "CZE"]
[SourceTitle "playchess.com"]
[Source "ChessBase"]
[SourceQuality "1"]
[WhiteTeam "Germany"]
[BlackTeam "Belarus"]
[WhiteTeamCountry "GER"]
[BlackTeamCountry "BLR"]
[TimeControl "40/5400+30:1800+30"]

1. e4 d6 2. d4 Nf6 3. Nc3 g6 4. Be3 Bg7 5. Qd2 c6 6. Bh6 Bxh6 7. Qxh6 Qa5 8. Bd3 b5 9. Qd2 Nbd7 10. f4 Nb6 11. Nf3 Rb8 12. O-O O-O 13. e5 Nh5 14. Nd5 Qxd2 15. Nxe7+ Kh8 16. Nxd2 Bb7 17. exd6 Rbd8 18. Ne4 Ba8 19. f5 Ng7 20. b3 Nxf5 21. Nxf5 gxf5 22. Rxf5 f6 23. c4 bxc4 24. bxc4 c5 25. d5 Nd7 26. Raf1 Kg7 27. Bc2 Rde8 28. R5f4 Rd8 29. Ba4 Nb6 30. Bb5 Rc8 31. Ba6 Rce8 32. Nxc5 Rg8 33. d7 Re2 34. Ne6+ Rxe6 35. dxe6 Kh8 36. g3 1-0

[Event "EYTCC U12 Open 2019"]
[Site "Pardubice"]
[Date "2019.07.14"]
[Round "4.17"]
[White "Royal, Shreyas"]
[Black "Finek, Vaclav"]
[Result "0-1"]
[ECO "D85"]
[WhiteElo "1996"]
[BlackElo "2043"]
[Annotator "NA"]
[PlyCount "129"]
[EventDate "2019.07.11"]
[EventType "swiss"]
[EventCountry "CZE"]
[SourceTitle "playchess.com"]
[Source "ChessBase"]
[SourceQuality "1"]
[WhiteTeam "England"]
[BlackTeam "Czech Republic"]
[WhiteTeamCountry "ENG"]
[BlackTeamCountry "CZE"]
[TimeControl "40/5400+30:1800+30"]

1. d4 {[%emt 0:00:00]} Nf6 {[%emt 0:00:00]} 2. c4 {[%emt 0:00:13]} g6 {[%emt 0:00:00]} 3. Nc3 {[%emt 0:00:34]} d5 {[%emt 0:00:00]} 4. cxd5 {[%emt 0:00:47]} Nxd5 {[%emt 0:00:00]} 5. Bd2 {[%emt 0:00:18]} Bg7 {[%emt 0:03:54]} 6. e4 {[%emt 0:02:14]} Nxc3 {[%emt 0:00:14]} 7. Bxc3 {[%emt 0:00:55]} O-O {[%emt 0:02:24]} 8. Qd2 {[%emt 0:02:29]} c5 {[%emt 0:03:37]} 9. d5 {[%emt 0:01:55]} Nd7 {[%emt 0:02:38]} 10. Bd3 {[%emt 0:03:43]} a6 {[%emt 0:04:17]} 11. Bxg7 {[%emt 0:04:03]} Kxg7 {[%emt 0:00:08]} 12. Ne2 {[%emt 0:00:05]} Ne5 {[%emt 0:06:39]} 13. Qc3 {[%emt 0:01:55]} f6 {[%emt 0:00:12]} 14. O-O {[%emt 0:01:32]} Bd7 {[%emt 0:08:30]} 15. a4 {[%emt 0:04:55]} Qb6 {[%emt 0:07:08]} 16. Bc2 {[%emt 0:06:30]} Qb4 {[%emt 0:02:49]} 17. Bb3 {[%emt 0:05:45]} Qxe4 {[%emt 0:09:27]} 18. Rfe1 {[%emt 0:00:58]} Qb4 {[%emt 0:04:55]} 19. f4 {[%emt 0:00:56]} Nf7 {[%emt 0:00:54]} 20. Qxb4 {[%emt 0:01:19]} cxb4 {[%emt 0:01:40]} 21. Nd4 {[%emt 0:01:04]} Rfe8 {[%emt 0:00:22]} 22. a5 {[%emt 0:01:06]} Rac8 {[%emt 0:02:23]} 23. Nc2 {[%emt 0:00:39]} Nd6 {[%emt 0:02:46]} 24. Nxb4 {[%emt 0:00:25]} Nf5 {[%emt 0:00:49]} 25. Nc2 {[%emt 0:02:02]} h5 {[%emt 0:02:38]} 26. Ne3 {[%emt 0:03:01]} Nd6 {[%emt 0:00:31]} 27. Nc2 {[%emt 0:00:58]} Nc4 {[%emt 0:06:23]} 28. Nd4 {[%emt 0:03:09]} Nxb2 {[%emt 0:03:31]} 29. Ne6+ {[%emt 0:00:02]} Kh6 {[%emt 0:02:50]} 30. Reb1 {[%emt 0:02:20]} Nd3 {[%emt 0:03:48]} 31. Ba4 {[%emt 0:00:19]} Bxa4 {[%emt 0:00:42]} 32. Rxa4 {[%emt 0:00:17]} Nc5 {[%emt 0:01:51]} 33. Nxc5 {[%emt 0:00:08]} Rxc5 {[%emt 0:00:06]} 34. Rxb7 {[%emt 0:00:53]} Rxd5 {[%emt 0:00:35]} 35. Ra7 {[%emt 0:00:07]} Rd6 {[%emt 0:02:58]} 36. Rb4 {[%emt 0:00:14]} Rd1+ {[%emt 0:03:18]} 37. Kf2 {[%emt 0:00:17]} Rd2+ {[%emt 0:00:13]} 38. Kf3 {[%emt 0:00:14]} Rc8 {[%emt 0:03:19]} 39. Rb3 {[%emt 0:01:24]} Rcc2 {[%emt 0:01:39]} 40. Rxa6 {[%emt 0:00:35]} Rxg2 {[%emt 0:01:18]} 41. h3 {[%emt 0:34:09]} Rh2 {[%emt 0:35:05]} 42. Ke4 {[%emt 0:00:11]} Rc4+ {[%emt 0:00:07]} 43. Kd5 {[%emt 0:00:20]} Rxf4 {[%emt 0:00:06]} 44. Ke6 {[%emt 0:01:10]} Re4+ {[%emt 0:01:46]} 45. Kf7 {[%emt 0:00:10]} Kg5 {[%emt 0:00:00]} 46. Rb5+ {[%emt 0:00:00]} Kf4 {[%emt 0:00:00]} 47. Kxg6 {[%emt 0:00:00]} Rxh3 {[%emt 0:00:00]} 48. Rf5+ {[%emt 0:00:00]} Kg4 {[%emt 0:00:00]} 49. Ra8 {[%emt 0:00:00]} Re5 {[%emt 0:00:00]} 50. Rxe5 {[%emt 0:00:00]} fxe5 {[%emt 0:00:00]} 51. a6 {[%emt 0:00:00]} Ra3 {[%emt 0:00:00]} 52. a7 {[%emt 0:00:00]} e4 {[%emt 0:00:00]} 53. Kf7 {[%emt 0:00:00]} Kh4 {[%emt 0:00:00]} 54. Kxe7 {[%emt 0:00:00]} Ra6 {[%emt 0:00:00]} 55. Rg8 {[%emt 0:00:00]} Rxa7+ 56. Kf6 {[%emt 0:00:00]} Ra3 {[%emt 0:00:00]} 57. Kf5 {[%emt 0:00:00]} Rg3 {[%emt 0:00:00]} 58. Rh8 {[%emt 0:00:00]} e3 {[%emt 0:00:00]} 59. Kf4 {[%emt 0:00:00]} Kh3 {[%emt 0:00:00]} 60. Rxh5+ {[%emt 0:00:00]} Kg2 {[%emt 0:00:00]} 61. Rh1 {[%emt 0:00:00]} e2 {[%emt 0:03:06]} 62. Ra1 {[%emt 0:00:00]} Rf3+ {[%emt 0:00:13]} 63. Ke4 {[%emt 0:00:00]} Kf2 {[%emt 0:00:16]} 64. Ra2 {[%emt 0:00:00]} Rb3 {[%emt 0:00:31]} 65. Kd4 0-1

[Event "EYTCC U12 Open 2019"]
[Site "Pardubice"]
[Date "2019.07.14"]
[Round "4.18"]
[White "Nemec, Jachym"]
[Black "Dias, Savin"]
[Result "1-0"]
[ECO "B76"]
[WhiteElo "1927"]
[BlackElo "1840"]
[Annotator "NA"]
[PlyCount "139"]
[EventDate "2019.07.11"]
[EventType "swiss"]
[EventCountry "CZE"]
[SourceTitle "playchess.com"]
[Source "ChessBase"]
[SourceQuality "1"]
[WhiteTeam "Czech Republic"]
[BlackTeam "England"]
[WhiteTeamCountry "CZE"]
[BlackTeamCountry "ENG"]
[TimeControl "40/5400+30:1800+30"]

1. e4 {[%emt 0:00:00]} c5 {[%emt 0:00:00]} 2. Nf3 {[%emt 0:00:00]} d6 {[%emt 0:00:00]} 3. d4 {[%emt 0:00:04]} cxd4 {[%emt 0:00:00]} 4. Nxd4 {[%emt 0:00:09]} Nf6 {[%emt 0:00:00]} 5. Nc3 {[%emt 0:00:17]} g6 {[%emt 0:00:00]} 6. f3 {[%emt 0:00:19]} Bg7 {[%emt 0:00:00]} 7. Be3 {[%emt 0:00:09]} O-O {[%emt 0:00:00]} 8. Qd2 {[%emt 0:00:12]} Nc6 {[%emt 0:00:00]} 9. O-O-O {[%emt 0:00:15]} d5 {[%emt 0:00:01]} 10. Qe1 {[%emt 0:00:15]} e5 {[%emt 0:02:21]} 11. Nxc6 {[%emt 0:00:12]} bxc6 {[%emt 0:00:09]} 12. exd5 {[%emt 0:00:22]} cxd5 {[%emt 0:02:05]} 13. Bg5 {[%emt 0:00:49]} d4 {[%emt 0:13:29]} 14. Qxe5 {[%emt 0:02:29]} Ne4 {[%emt 0:04:11]} 15. Nxe4 {[%emt 0:23:04]} Bxe5 {[%emt 0:00:14]} 16. Bxd8 {[%emt 0:00:07]} Rxd8 {[%emt 0:00:10]} 17. Bd3 {[%emt 0:07:53]} Be6 {[%emt 0:04:07]} 18. Kb1 {[%emt 0:08:11]} Rab8 {[%emt 0:04:07]} 19. g3 {[%emt 0:01:40]} Rb6 {[%emt 0:00:43]} 20. f4 {[%emt 0:01:59]} Bg7 {[%emt 0:01:34]} 21. Nd2 {[%emt 0:03:31]} Rdb8 {[%emt 0:00:48]} 22. b3 {[%emt 0:00:10]} Rb4 {[%emt 0:01:19]} 23. a3 {[%emt 0:00:48]} R4b7 {[%emt 0:01:37]} 24. Rhf1 {[%emt 0:12:21]} Bf8 {[%emt 0:04:24]} 25. Ka2 {[%emt 0:00:15]} a5 {[%emt 0:02:31]} 26. f5 {[%emt 0:03:14]} gxf5 {[%emt 0:04:10]} 27. Bxf5 {[%emt 0:00:16]} a4 {[%emt 0:01:37]} 28. Bxe6 {[%emt 0:03:22]} fxe6 {[%emt 0:00:06]} 29. Rb1 {[%emt 0:03:00]} Rc7 {[%emt 0:03:40]} 30. Nc4 {[%emt 0:00:43]} e5 {[%emt 0:00:50]} 31. Rbe1 {[%emt 0:01:13]} Bg7 {[%emt 0:02:41]} 32. Rf2 {[%emt 0:02:22]} axb3+ {[%emt 0:09:50]} 33. cxb3 {[%emt 0:01:46]} Re7 {[%emt 0:00:21]} 34. Re4 {[%emt 0:00:18]} Rf8 {[%emt 0:01:10]} 35. Rfe2 {[%emt 0:01:37]} d3 {[%emt 0:01:04]} 36. Rd2 {[%emt 0:00:50]} Rd8 {[%emt 0:00:13]} 37. Kb2 {[%emt 0:01:42]} Bh6 {[%emt 0:01:34]} 38. Rd1 {[%emt 0:00:19]} d2 {[%emt 0:00:37]} 39. Kc2 {[%emt 0:00:40]} Rd5 {[%emt 0:01:08]} 40. Nxd2 {[%emt 0:01:08]} Red7 {[%emt 0:00:27]} 41. Re2 {[%emt 0:36:43]} Kg7 {[%emt 0:32:56]} 42. a4 {[%emt 0:01:01]} e4 {[%emt 0:00:20]} 43. Rxe4 {[%emt 0:00:28]} Rxd2+ {[%emt 0:00:04]} 44. Rxd2 {[%emt 0:00:09]} Rxd2+ {[%emt 0:00:02]} 45. Kc3 {[%emt 0:00:08]} Rxh2 {[%emt 0:00:22]} 46. b4 {[%emt 0:00:49]} Bd2+ {[%emt 0:03:46]} 47. Kc4 {[%emt 0:00:30]} Rh3 {[%emt 0:01:30]} 48. g4 {[%emt 0:03:07]} Kf6 {[%emt 0:03:41]} 49. a5 {[%emt 0:00:38]} Kg5 {[%emt 0:00:12]} 50. a6 {[%emt 0:01:43]} Be3 {[%emt 0:02:45]} 51. b5 {[%emt 0:02:30]} Bf2 {[%emt 0:00:49]} 52. Kd5 {[%emt 0:01:15]} Rh6 {[%emt 0:01:36]} 53. Rc4 {[%emt 0:05:00]} Rh3 {[%emt 0:01:10]} 54. Kc6 {[%emt 0:01:04]} Rb3 {[%emt 0:00:08]} 55. Rc5+ {[%emt 0:03:32]} Kxg4 {[%emt 0:06:00]} 56. b6 {[%emt 0:00:16]} h5 {[%emt 0:03:20]} 57. a7 {[%emt 0:00:00]} Bxc5 {[%emt 0:00:00]} 58. a8=Q {[%emt 0:00:00]} Rxb6+ {[%emt 0:00:00]} 59. Kxc5 {[%emt 0:00:00]} Rh6 {[%emt 0:00:00]} 60. Qe4+ {[%emt 0:00:00]} Kg5 {[%emt 0:00:00]} 61. Kd5 {[%emt 0:00:00]} Ra6 {[%emt 0:00:00]} 62. Qg2+ {[%emt 0:00:00]} Kh4 {[%emt 0:00:00]} 63. Qf2+ {[%emt 0:00:00]} Kg5 {[%emt 0:00:00]} 64. Qg3+ {[%emt 0:00:00]} Kh6 {[%emt 0:00:00]} 65. Qe3+ {[%emt 0:00:00]} Kg7 {[%emt 0:00:00]} 66. Ke5 {[%emt 0:00:00]} Ra5+ {[%emt 0:00:00]} 67. Kf4 {[%emt 0:00:00]} Rb5 {[%emt 0:00:00]} 68. Qe7+ {[%emt 0:00:00]} Kh6 {[%emt 0:00:00]} 69. Qe6+ {[%emt 0:00:00]} Kh7 {[%emt 0:00:00]} 70. Qd7+ {[%emt 0:00:00]} 1-0